[Event "Titled Tuesday Blitz November 14 Early 2023"]
[White "Herman, Daniel"]
[Black "Cueto, Jonny"]
[WhiteFideId "30935008"]
[BlackFideId "3300145"]
[WhiteElo "2401"]
[BlackElo "2221"]
[Result "1-0"]
[Round "8"]
[TimeControl "180+1"]
[Date "2023.11.14"]
[WhiteClock "0:00:07"]
[BlackClock "0:00:00"]
[Board "157"]

1. c4 {[%clk 0:02:59]}  e6 {[%clk 0:03:00]} 2. d4 {[%clk 0:02:58]}  Nf6 {[%clk 0:02:59]} 3. g3 {[%clk 0:02:56]}  Bb4+ {[%clk 0:02:57]} 4. Bd2 {[%clk 0:02:56]}  Qe7 {[%clk 0:02:58]} 5. Bg2 {[%clk 0:02:53]}  O-O {[%clk 0:02:57]} 6. Nf3 {[%clk 0:02:52]}  Nc6 {[%clk 0:02:57]} 7. O-O {[%clk 0:02:52]}  Bxd2 {[%clk 0:02:57]} 8. Qxd2 {[%clk 0:02:50]}  d6 {[%clk 0:02:58]} 9. Nc3 {[%clk 0:02:49]}  a5 {[%clk 0:02:52]} 10. d5 {[%clk 0:02:44]}  Nb8 {[%clk 0:02:51]} 11. Nd4 {[%clk 0:02:39]}  e5 {[%clk 0:02:48]} 12. Ndb5 {[%clk 0:02:39]}  Na6 {[%clk 0:02:37]} 13. Qc2 {[%clk 0:02:35]}  Nb4 {[%clk 0:02:26]} 14. Qb1 {[%clk 0:02:33]}  Bg4 {[%clk 0:02:18]} 15. a3 {[%clk 0:02:29]}  Na6 {[%clk 0:02:17]} 16. b4 {[%clk 0:02:26]}  axb4 {[%clk 0:02:15]} 17. axb4 {[%clk 0:02:26]}  Bh5 {[%clk 0:02:16]} 18. Ra4 {[%clk 0:02:01]}  Bg6 {[%clk 0:02:15]} 19. Qa2 {[%clk 0:02:01]}  Nxb4 {[%clk 0:02:05]} 20. Qb3 {[%clk 0:01:43]}  Nc2 {[%clk 0:01:46]} 21. e4 {[%clk 0:01:24]}  Nd4 {[%clk 0:01:43]} 22. Nxd4 {[%clk 0:01:22]}  exd4 {[%clk 0:01:44]} 23. Rxa8 {[%clk 0:01:19]}  Rxa8 {[%clk 0:01:41]} 24. Qxb7 {[%clk 0:01:19]}  Re8 {[%clk 0:01:36]} 25. Nb5 {[%clk 0:01:18]}  Bxe4 {[%clk 0:01:21]} 26. Qxc7 {[%clk 0:00:51]}  Qxc7 {[%clk 0:00:58]} 27. Nxc7 {[%clk 0:00:52]}  Rc8 {[%clk 0:00:57]} 28. Nb5 {[%clk 0:00:51]}  Bxg2 {[%clk 0:00:37]} 29. Kxg2 {[%clk 0:00:50]}  Rxc4 {[%clk 0:00:38]} 30. Rd1 {[%clk 0:00:45]}  Rc5 {[%clk 0:00:24]} 31. Nxd6 {[%clk 0:00:21]}  Rxd5 {[%clk 0:00:24]} 32. Nc4 {[%clk 0:00:19]}  g6 {[%clk 0:00:20]} 33. Nb2 {[%clk 0:00:18]}  Kg7 {[%clk 0:00:19]} 34. Nd3 {[%clk 0:00:17]}  Nd7 {[%clk 0:00:16]} 35. Rb1 {[%clk 0:00:16]}  f6 {[%clk 0:00:15]} 36. Rb7 {[%clk 0:00:15]}  Kf8 {[%clk 0:00:15]} 37. Kf3 {[%clk 0:00:13]}  Ne5+ {[%clk 0:00:15]} 38. Nxe5 {[%clk 0:00:12]}  fxe5 {[%clk 0:00:15]} 39. Ke2 {[%clk 0:00:12]}  Kg8 {[%clk 0:00:13]} 40. Kd3 {[%clk 0:00:11]}  Rd8 {[%clk 0:00:13]} 41. f4 {[%clk 0:00:10]}  exf4 {[%clk 0:00:08]} 42. gxf4 {[%clk 0:00:10]}  Rf8 {[%clk 0:00:07]} 43. Kxd4 {[%clk 0:00:08]}  Rxf4+ {[%clk 0:00:07]} 44. Ke3 {[%clk 0:00:08]}  Rh4 {[%clk 0:00:07]} 45. Rb2 {[%clk 0:00:08]}  Kg7 {[%clk 0:00:07]} 46. Kf3 {[%clk 0:00:09]}  Kh6 {[%clk 0:00:08]} 47. Kg3 {[%clk 0:00:09]}  Ra4 {[%clk 0:00:08]} 48. Rb3 {[%clk 0:00:08]}  Ra2 {[%clk 0:00:09]} 49. h3 {[%clk 0:00:09]}  Kh5 {[%clk 0:00:08]} 50. Rc3 {[%clk 0:00:09]}  Ra1 {[%clk 0:00:08]} 51. Rb3 {[%clk 0:00:09]}  Rg1+ {[%clk 0:00:08]} 52. Kh2 {[%clk 0:00:09]}  Ra1 {[%clk 0:00:09]} 53. Kg3 {[%clk 0:00:09]}  Ra2 {[%clk 0:00:09]} 54. Rc3 {[%clk 0:00:08]}  Rd2 {[%clk 0:00:06]} 55. Rb3 {[%clk 0:00:09]}  Rd1 {[%clk 0:00:05]} 56. Rc3 {[%clk 0:00:09]}  Rg1+ {[%clk 0:00:06]} 57. Kh2 {[%clk 0:00:08]}  Rg5 {[%clk 0:00:06]} 58. Rb3 {[%clk 0:00:08]}  h6 {[%clk 0:00:06]} 59. Ra3 {[%clk 0:00:08]}  Rd5 {[%clk 0:00:06]} 60. Rb3 {[%clk 0:00:08]}  Rd2+ {[%clk 0:00:04]} 61. Kg3 {[%clk 0:00:08]}  g5 {[%clk 0:00:05]} 62. Ra3 {[%clk 0:00:08]}  Rd1 {[%clk 0:00:05]} 63. Rb3 {[%clk 0:00:08]}  Rg1+ {[%clk 0:00:05]} 64. Kh2 {[%clk 0:00:08]}  Ra1 {[%clk 0:00:05]} 65. Kg3 {[%clk 0:00:08]}  Rg1+ {[%clk 0:00:06]} 66. Kh2 {[%clk 0:00:08]}  Re1 {[%clk 0:00:07]} 67. Kg3 {[%clk 0:00:07]}  Re8 {[%clk 0:00:07]} 68. Ra3 {[%clk 0:00:08]}  Rf8 {[%clk 0:00:06]} 69. Rb3 {[%clk 0:00:08]}  Kg6 {[%clk 0:00:07]} 70. Ra3 {[%clk 0:00:08]}  Rf6 {[%clk 0:00:07]} 71. Rb3 {[%clk 0:00:09]}  h5 {[%clk 0:00:08]} 72. Ra3 {[%clk 0:00:09]}  h4+ {[%clk 0:00:09]} 73. Kg2 {[%clk 0:00:08]}  Rd6 {[%clk 0:00:09]} 74. Ra2 {[%clk 0:00:08]}  Rd3 {[%clk 0:00:08]} 75. Rb2 {[%clk 0:00:08]}  Rg3+ {[%clk 0:00:09]} 76. Kh2 {[%clk 0:00:08]}  Kh5 {[%clk 0:00:10]} 77. Rc2 {[%clk 0:00:08]}  Re3 {[%clk 0:00:09]} 78. Rb2 {[%clk 0:00:09]}  Ra3 {[%clk 0:00:10]} 79. Rc2 {[%clk 0:00:09]}  Kg6 {[%clk 0:00:10]} 80. Rf2 {[%clk 0:00:09]}  Kh5 {[%clk 0:00:10]} 81. Re2 {[%clk 0:00:09]}  Ra1 {[%clk 0:00:11]} 82. Rf2 {[%clk 0:00:09]}  g4 {[%clk 0:00:11]} 83. Rf5+ {[%clk 0:00:08]}  Kg6 {[%clk 0:00:11]} 84. hxg4 {[%clk 0:00:09]}  Ra3 {[%clk 0:00:11]} 85. Rh5 {[%clk 0:00:08]}  Rg3 {[%clk 0:00:07]} 86. Rxh4 {[%clk 0:00:08]}  Ra3 {[%clk 0:00:06]} 87. Rh8 {[%clk 0:00:08]}  Kg5 {[%clk 0:00:06]} 88. Rg8+ {[%clk 0:00:08]}  Kf6 {[%clk 0:00:06]} 89. Kg2 {[%clk 0:00:07]}  Rb3 {[%clk 0:00:06]} 90. Kf2 {[%clk 0:00:07]}  Ra3 {[%clk 0:00:06]} 91. Rb8 {[%clk 0:00:06]}  Rc3 {[%clk 0:00:06]} 92. Rb5 {[%clk 0:00:05]}  Ra3 {[%clk 0:00:06]} 93. Rf5+ {[%clk 0:00:04]}  Kg6 {[%clk 0:00:06]} 94. Rf3 {[%clk 0:00:05]}  Ra1 {[%clk 0:00:02]} 95. Kg3 {[%clk 0:00:05]}  Rg1+ {[%clk 0:00:03]} 96. Kh4 {[%clk 0:00:05]}  Rh1+ {[%clk 0:00:03]} 97. Kg3 {[%clk 0:00:04]}  Rg1+ {[%clk 0:00:03]} 98. Kf4 {[%clk 0:00:04]}  Ra1 {[%clk 0:00:04]} 99. Rb3 {[%clk 0:00:05]}  Rf1+ {[%clk 0:00:04]} 100. Kg3 {[%clk 0:00:05]}  Rg1+ {[%clk 0:00:04]} 101. Kh3 {[%clk 0:00:05]}  Rh1+ {[%clk 0:00:04]} 102. Kg2 {[%clk 0:00:05]}  Rc1 {[%clk 0:00:04]} 103. Rb5 {[%clk 0:00:06]}  Rc2+ {[%clk 0:00:04]} 104. Kf3 {[%clk 0:00:05]}  Rc3+ {[%clk 0:00:05]} 105. Kf4 {[%clk 0:00:06]}  Rc4+ {[%clk 0:00:06]} 106. Kg3 {[%clk 0:00:06]}  Rc3+ {[%clk 0:00:06]} 107. Kh4 {[%clk 0:00:06]}  Rc1 {[%clk 0:00:06]} 108. Rb6+ {[%clk 0:00:07]}  Kg7 {[%clk 0:00:06]} 109. Kh5 {[%clk 0:00:07]}  Rh1+ {[%clk 0:00:06]} 110. Kg5 {[%clk 0:00:08]}  Rc1 {[%clk 0:00:06]} 111. Rb7+ {[%clk 0:00:08]}  Kg8 {[%clk 0:00:05]} 112. Kh6 {[%clk 0:00:08]}  Rh1+ {[%clk 0:00:04]} 113. Kg6 {[%clk 0:00:08]}  Kf8 {[%clk 0:00:04]} 114. Rb8+ {[%clk 0:00:07]}  Ke7 {[%clk 0:00:04]} 115. g5 {[%clk 0:00:07]}  Rh3 {[%clk 0:00:04]} 116. Kg7 {[%clk 0:00:07]}  Rh4 {[%clk 0:00:04]} 117. g6 {[%clk 0:00:08]}  Rh2 {[%clk 0:00:03]} 118. Kg8 {[%clk 0:00:08]}  Rh1 {[%clk 0:00:03]} 119. g7 {[%clk 0:00:07]}  Rh4 {[%clk 0:00:02]} 120. Rb1 {[%clk 0:00:07]}  Rh5 {[%clk 0:00:02]} 121. Re1+ {[%clk 0:00:07]}  Kf6 {[%clk 0:00:00]} 122. Kf8 {[%clk 0:00:07]} 1-0


[Site "https://www.chess.com"]

[Event "Titled Tuesday Blitz November 14 Early 2023"]
[White "Ismayilova, Khanim"]
[Black "Jakubowska, Anna"]
[WhiteFideId "13429019"]
[BlackFideId "1121952"]
[WhiteElo "2161"]
[BlackElo "2343"]
[Result "0-1"]
[Round "8"]
[TimeControl "180+1"]
[Date "2023.11.14"]
[WhiteClock "0:01:16"]
[BlackClock "0:01:18"]
[Board "159"]

1. e4 {[%clk 0:03:00]}  Nf6 {[%clk 0:02:57]} 2. e5 {[%clk 0:03:01]}  Nd5 {[%clk 0:02:57]} 3. c4 {[%clk 0:03:01]}  Nb6 {[%clk 0:02:57]} 4. d4 {[%clk 0:03:02]}  d6 {[%clk 0:02:57]} 5. exd6 {[%clk 0:03:02]}  cxd6 {[%clk 0:02:58]} 6. Nf3 {[%clk 0:03:02]}  g6 {[%clk 0:02:58]} 7. Nc3 {[%clk 0:03:01]}  Bg7 {[%clk 0:02:59]} 8. Be2 {[%clk 0:03:00]}  O-O {[%clk 0:02:58]} 9. O-O {[%clk 0:03:00]}  Bg4 {[%clk 0:02:57]} 10. b3 {[%clk 0:02:52]}  Nc6 {[%clk 0:02:54]} 11. Be3 {[%clk 0:02:50]}  e5 {[%clk 0:02:52]} 12. d5 {[%clk 0:02:46]}  Ne7 {[%clk 0:02:52]} 13. Rc1 {[%clk 0:02:45]}  f5 {[%clk 0:02:51]} 14. h3 {[%clk 0:02:44]}  Bxf3 {[%clk 0:02:50]} 15. Bxf3 {[%clk 0:02:44]}  e4 {[%clk 0:02:49]} 16. Be2 {[%clk 0:02:44]}  f4 {[%clk 0:02:48]} 17. Bd4 {[%clk 0:02:44]}  f3 {[%clk 0:02:46]} 18. Bxg7 {[%clk 0:02:36]}  fxe2 {[%clk 0:02:45]} 19. Qxe2 {[%clk 0:02:32]}  Kxg7 {[%clk 0:02:44]} 20. Qxe4 {[%clk 0:02:32]}  Qd7 {[%clk 0:02:42]} 21. Qd4+ {[%clk 0:02:21]}  Kg8 {[%clk 0:02:41]} 22. Ne4 {[%clk 0:02:22]}  Nf5 {[%clk 0:02:24]} 23. Nf6+ {[%clk 0:02:21]}  Rxf6 {[%clk 0:01:57]} 24. Qxf6 {[%clk 0:02:22]}  Rf8 {[%clk 0:01:57]} 25. Qg5 {[%clk 0:02:15]}  Qg7 {[%clk 0:01:48]} 26. Rc2 {[%clk 0:01:54]}  Nd7 {[%clk 0:01:44]} 27. Re2 {[%clk 0:01:50]}  Ne5 {[%clk 0:01:44]} 28. f4 {[%clk 0:01:43]}  h6 {[%clk 0:01:31]} 29. Qxf5 {[%clk 0:01:22]}  Rxf5 {[%clk 0:01:29]} 30. fxe5 {[%clk 0:01:23]}  Rxf1+ {[%clk 0:01:26]} 31. Kxf1 {[%clk 0:01:24]}  dxe5 {[%clk 0:01:26]} 32. d6 {[%clk 0:01:22]}  Qf6+ {[%clk 0:01:25]} 33. Kg1 {[%clk 0:01:19]}  Qxd6 {[%clk 0:01:25]} 34. Rf2 {[%clk 0:01:19]}  e4 {[%clk 0:01:25]} 35. Re2 {[%clk 0:01:18]}  Qd4+ {[%clk 0:01:20]} 36. Kf1 {[%clk 0:01:16]}  e3 {[%clk 0:01:19]} 37. Ke1 {[%clk 0:01:16]}  Qa1# {[%clk 0:01:18]} 0-1


[Site "https://www.chess.com"]

[Event "Titled Tuesday Blitz November 14 Early 2023"]
[White "Dahlgren, James Allen"]
[Black "MIss_MIaMI"]
[WhiteFideId "22256873"]
[WhiteElo "2148"]
[BlackElo "2342"]
[Result "0-1"]
[Round "8"]
[TimeControl "180+1"]
[Date "2023.11.14"]
[WhiteClock "0:00:01"]
[BlackClock "0:00:14"]
[Board "160"]

1. e4 {[%clk 0:03:00]}  c5 {[%clk 0:03:00]} 2. Nc3 {[%clk 0:02:59]}  e6 {[%clk 0:03:01]} 3. f4 {[%clk 0:02:59]}  a6 {[%clk 0:03:00]} 4. a4 {[%clk 0:02:58]}  b6 {[%clk 0:02:58]} 5. Bc4 {[%clk 0:02:57]}  Bb7 {[%clk 0:02:58]} 6. d3 {[%clk 0:02:53]}  Nf6 {[%clk 0:02:49]} 7. Nf3 {[%clk 0:02:53]}  d5 {[%clk 0:02:40]} 8. exd5 {[%clk 0:02:50]}  exd5 {[%clk 0:02:41]} 9. Ba2 {[%clk 0:02:49]}  Be7 {[%clk 0:02:12]} 10. O-O {[%clk 0:02:48]}  O-O {[%clk 0:02:09]} 11. h3 {[%clk 0:02:35]}  Re8 {[%clk 0:02:05]} 12. d4 {[%clk 0:02:29]}  c4 {[%clk 0:02:06]} 13. b3 {[%clk 0:02:26]}  Bb4 {[%clk 0:02:05]} 14. Bd2 {[%clk 0:02:12]}  Bxc3 {[%clk 0:02:03]} 15. Bxc3 {[%clk 0:02:11]}  Ne4 {[%clk 0:02:03]} 16. Bd2 {[%clk 0:02:05]}  b5 {[%clk 0:01:57]} 17. c3 {[%clk 0:01:57]}  Nd7 {[%clk 0:01:47]} 18. b4 {[%clk 0:01:55]}  Ndf6 {[%clk 0:01:41]} 19. Bb1 {[%clk 0:01:51]}  Nh5 {[%clk 0:01:37]} 20. g4 {[%clk 0:01:40]}  Nhg3 {[%clk 0:01:31]} 21. Re1 {[%clk 0:01:40]}  Qf6 {[%clk 0:01:14]} 22. Ne5 {[%clk 0:01:34]}  Qh4 {[%clk 0:01:11]} 23. Kg2 {[%clk 0:01:32]}  f6 {[%clk 0:00:39]} 24. Nf3 {[%clk 0:01:15]}  Qh6 {[%clk 0:00:37]} 25. f5 {[%clk 0:00:58]}  Nxd2 {[%clk 0:00:34]} 26. Qxd2 {[%clk 0:00:59]}  Qxd2+ {[%clk 0:00:31]} 27. Nxd2 {[%clk 0:00:58]}  Rxe1 {[%clk 0:00:30]} 28. Kxg3 {[%clk 0:00:53]}  Rae8 {[%clk 0:00:28]} 29. Ra2 {[%clk 0:00:48]}  R8e3+ {[%clk 0:00:28]} 30. Kf4 {[%clk 0:00:47]}  Rxc3 {[%clk 0:00:26]} 31. axb5 {[%clk 0:00:45]}  axb5 {[%clk 0:00:27]} 32. Ra7 {[%clk 0:00:39]}  Re7 {[%clk 0:00:28]} 33. Nf3 {[%clk 0:00:36]}  Kf7 {[%clk 0:00:18]} 34. g5 {[%clk 0:00:36]}  fxg5+ {[%clk 0:00:18]} 35. Nxg5+ {[%clk 0:00:36]}  Ke8 {[%clk 0:00:17]} 36. f6 {[%clk 0:00:29]}  gxf6 {[%clk 0:00:17]} 37. Nxh7 {[%clk 0:00:30]}  Kf7 {[%clk 0:00:17]} 38. h4 {[%clk 0:00:25]}  Rb3 {[%clk 0:00:18]} 39. Bf5 {[%clk 0:00:22]}  Rxb4 {[%clk 0:00:17]} 40. h5 {[%clk 0:00:21]}  Rb2 {[%clk 0:00:17]} 41. Bg6+ {[%clk 0:00:20]}  Kg7 {[%clk 0:00:17]} 42. Kf5 {[%clk 0:00:17]}  Rf2+ {[%clk 0:00:17]} 43. Kg4 {[%clk 0:00:17]}  c3 {[%clk 0:00:18]} 44. Ra3 {[%clk 0:00:11]}  c2 {[%clk 0:00:18]} 45. Rc3 {[%clk 0:00:11]}  b4 {[%clk 0:00:19]} 46. Rxc2 {[%clk 0:00:11]}  Rxc2 {[%clk 0:00:18]} 47. Bxc2 {[%clk 0:00:12]}  Bc8+ {[%clk 0:00:18]} 48. Kf4 {[%clk 0:00:11]}  Kh6 {[%clk 0:00:15]} 49. Nxf6 {[%clk 0:00:11]}  Rf7 {[%clk 0:00:15]} 50. Ke5 {[%clk 0:00:11]}  Bb7 {[%clk 0:00:14]} 51. Nxd5 {[%clk 0:00:11]}  Bxd5 {[%clk 0:00:13]} 52. Kxd5 {[%clk 0:00:12]}  Rc7 {[%clk 0:00:12]} 53. Bb3 {[%clk 0:00:12]}  Rc3 {[%clk 0:00:12]} 54. Bc4 {[%clk 0:00:10]}  Kxh5 {[%clk 0:00:11]} 55. Kc5 {[%clk 0:00:10]}  b3 {[%clk 0:00:11]} 56. Kb4 {[%clk 0:00:10]}  b2 {[%clk 0:00:12]} 57. Ba2 {[%clk 0:00:10]}  Rc1 {[%clk 0:00:12]} 58. d5 {[%clk 0:00:10]}  b1=Q+ {[%clk 0:00:12]} 59. Bxb1 {[%clk 0:00:10]}  Rxb1+ {[%clk 0:00:13]} 60. Kc5 {[%clk 0:00:09]}  Rc1+ {[%clk 0:00:13]} 61. Kd6 {[%clk 0:00:09]}  Kh6 {[%clk 0:00:12]} 62. Ke7 {[%clk 0:00:09]}  Re1+ {[%clk 0:00:12]} 63. Kd7 {[%clk 0:00:09]}  Kg6 {[%clk 0:00:12]} 64. d6 {[%clk 0:00:09]}  Kf6 {[%clk 0:00:13]} 65. Kc8 {[%clk 0:00:07]}  Rc1+ {[%clk 0:00:13]} 66. Kd8 {[%clk 0:00:07]}  Ke6 {[%clk 0:00:14]} 67. d7 {[%clk 0:00:01]}  Rd1 {[%clk 0:00:14]} 0-1


[Site "https://www.chess.com"]

[Event "Titled Tuesday Blitz November 14 Early 2023"]
[White "Winkels, Marcel"]
[Black "Fernandez Siles, Luis"]
[WhiteFideId "1003887"]
[BlackFideId "2209420"]
[WhiteElo "2076"]
[BlackElo "2328"]
[Result "0-1"]
[Round "8"]
[TimeControl "180+1"]
[Date "2023.11.14"]
[WhiteClock "0:00:05"]
[BlackClock "0:00:27"]
[Board "162"]

1. e4 {[%clk 0:03:00]}  e5 {[%clk 0:02:58]} 2. Nf3 {[%clk 0:02:59]}  Nc6 {[%clk 0:02:58]} 3. Bb5 {[%clk 0:02:58]}  Nge7 {[%clk 0:02:58]} 4. O-O {[%clk 0:02:54]}  g6 {[%clk 0:02:56]} 5. c3 {[%clk 0:02:54]}  Bg7 {[%clk 0:02:56]} 6. d4 {[%clk 0:02:53]}  exd4 {[%clk 0:02:57]} 7. cxd4 {[%clk 0:02:52]}  d5 {[%clk 0:02:57]} 8. e5 {[%clk 0:02:43]}  O-O {[%clk 0:02:54]} 9. Nc3 {[%clk 0:02:37]}  Bg4 {[%clk 0:02:52]} 10. Be3 {[%clk 0:02:29]}  f6 {[%clk 0:02:46]} 11. exf6 {[%clk 0:02:19]}  Bxf6 {[%clk 0:02:29]} 12. Be2 {[%clk 0:02:04]}  Qd6 {[%clk 0:02:09]} 13. Qb3 {[%clk 0:02:01]}  Kg7 {[%clk 0:02:00]} 14. Rfd1 {[%clk 0:01:52]}  b6 {[%clk 0:01:53]} 15. Nb5 {[%clk 0:01:45]}  Qd7 {[%clk 0:01:47]} 16. Rac1 {[%clk 0:01:38]}  a6 {[%clk 0:01:45]} 17. Nc3 {[%clk 0:01:34]}  b5 {[%clk 0:01:40]} 18. h3 {[%clk 0:01:30]}  Be6 {[%clk 0:01:38]} 19. a3 {[%clk 0:01:16]}  Rae8 {[%clk 0:01:28]} 20. Na2 {[%clk 0:01:06]}  Nf5 {[%clk 0:01:15]} 21. Nb4 {[%clk 0:00:59]}  Nxe3 {[%clk 0:01:10]} 22. fxe3 {[%clk 0:00:53]}  Nb8 {[%clk 0:00:41]} 23. Qc3 {[%clk 0:00:48]}  Bd8 {[%clk 0:00:37]} 24. Nd3 {[%clk 0:00:47]}  Bxh3 {[%clk 0:00:37]} 25. Nc5 {[%clk 0:00:41]}  Qg4 {[%clk 0:00:34]} 26. Bf1 {[%clk 0:00:27]}  Rxf3 {[%clk 0:00:32]} 27. Kh2 {[%clk 0:00:21]}  Rxf1 {[%clk 0:00:28]} 28. gxh3 {[%clk 0:00:05]}  Rf2+ {[%clk 0:00:27]} 0-1


[Site "https://www.chess.com"]

[Event "Titled Tuesday Blitz November 14 Early 2023"]
[White "Mazzilli, Piero"]
[Black "IsaqueGoncalvesSanto"]
[WhiteFideId "807087"]
[WhiteElo "2324"]
[BlackElo "1905"]
[Result "0-1"]
[Round "8"]
[TimeControl "180+1"]
[Date "2023.11.14"]
[WhiteClock "0:00:00"]
[BlackClock "0:00:10"]
[Board "163"]

1. e4 {[%clk 0:03:00]}  e6 {[%clk 0:02:59]} 2. Nf3 {[%clk 0:02:59]}  d5 {[%clk 0:03:00]} 3. Nc3 {[%clk 0:02:59]}  Bb4 {[%clk 0:02:59]} 4. e5 {[%clk 0:02:59]}  Ne7 {[%clk 0:02:57]} 5. Ne2 {[%clk 0:02:58]}  c5 {[%clk 0:02:55]} 6. c3 {[%clk 0:02:58]}  Ba5 {[%clk 0:02:54]} 7. a3 {[%clk 0:02:58]}  c4 {[%clk 0:02:48]} 8. d4 {[%clk 0:02:49]}  h5 {[%clk 0:02:41]} 9. Bg5 {[%clk 0:02:34]}  Qb6 {[%clk 0:02:30]} 10. Bxe7 {[%clk 0:02:29]}  Kxe7 {[%clk 0:02:29]} 11. Qd2 {[%clk 0:02:28]}  f6 {[%clk 0:02:22]} 12. Nf4 {[%clk 0:02:25]}  Kf7 {[%clk 0:02:06]} 13. Qc2 {[%clk 0:02:23]}  Rh6 {[%clk 0:01:56]} 14. Be2 {[%clk 0:02:18]}  g5 {[%clk 0:01:47]} 15. exf6 {[%clk 0:01:51]}  gxf4 {[%clk 0:01:43]} 16. Ne5+ {[%clk 0:01:49]}  Kxf6 {[%clk 0:01:43]} 17. Qd2 {[%clk 0:01:47]}  Kg7 {[%clk 0:01:32]} 18. Qxf4 {[%clk 0:01:43]}  Qc7 {[%clk 0:01:32]} 19. Qg5+ {[%clk 0:01:38]}  Kh7 {[%clk 0:01:27]} 20. Bxh5 {[%clk 0:01:25]}  Qg7 {[%clk 0:01:23]} 21. Qh4 {[%clk 0:01:25]}  Kg8 {[%clk 0:00:58]} 22. g4 {[%clk 0:00:45]}  Nc6 {[%clk 0:00:47]} 23. g5 {[%clk 0:00:29]}  Rh8 {[%clk 0:00:35]} 24. f4 {[%clk 0:00:17]}  Nxe5 {[%clk 0:00:31]} 25. fxe5 {[%clk 0:00:17]}  Bd7 {[%clk 0:00:30]} 26. Rf1 {[%clk 0:00:09]}  Be8 {[%clk 0:00:28]} 27. g6 {[%clk 0:00:07]}  Bxg6 {[%clk 0:00:26]} 28. Rg1 {[%clk 0:00:05]}  Qh6 {[%clk 0:00:14]} 29. Qf6 {[%clk 0:00:00]}  Qe3+ {[%clk 0:00:10]} 0-1


[Site "https://www.chess.com"]

[Event "Titled Tuesday Blitz November 14 Early 2023"]
[White "Kornyukov, Alexey"]
[Black "Pasmendjambvirgulptipon98"]
[WhiteFideId "4150457"]
[WhiteElo "2327"]
[BlackElo "2172"]
[Result "0-1"]
[Round "8"]
[TimeControl "180+1"]
[Date "2023.11.14"]
[WhiteClock "0:00:00"]
[BlackClock "0:00:30"]
[Board "164"]

1. e4 {[%clk 0:02:59]}  e5 {[%clk 0:02:58]} 2. Nf3 {[%clk 0:02:58]}  Nc6 {[%clk 0:02:58]} 3. Bc4 {[%clk 0:02:56]}  Nf6 {[%clk 0:02:56]} 4. d3 {[%clk 0:02:54]}  Be7 {[%clk 0:02:54]} 5. Nc3 {[%clk 0:02:54]}  d6 {[%clk 0:02:53]} 6. O-O {[%clk 0:02:54]}  Bg4 {[%clk 0:02:52]} 7. h3 {[%clk 0:02:54]}  Bh5 {[%clk 0:02:51]} 8. Be3 {[%clk 0:02:47]}  h6 {[%clk 0:02:46]} 9. Nd5 {[%clk 0:02:45]}  Nxd5 {[%clk 0:02:45]} 10. exd5 {[%clk 0:02:45]}  Nb8 {[%clk 0:02:43]} 11. d4 {[%clk 0:02:39]}  e4 {[%clk 0:02:37]} 12. g4 {[%clk 0:02:38]}  Bg6 {[%clk 0:02:21]} 13. Nh2 {[%clk 0:02:28]}  Bg5 {[%clk 0:02:15]} 14. Bxg5 {[%clk 0:02:27]}  hxg5 {[%clk 0:02:14]} 15. Kg2 {[%clk 0:02:23]}  Qf6 {[%clk 0:02:12]} 16. c3 {[%clk 0:01:55]}  Nd7 {[%clk 0:02:11]} 17. Qe2 {[%clk 0:01:54]}  O-O-O {[%clk 0:02:10]} 18. b4 {[%clk 0:01:44]}  Rh4 {[%clk 0:02:08]} 19. f3 {[%clk 0:01:27]}  e3 {[%clk 0:01:49]} 20. Qxe3 {[%clk 0:01:05]}  Rdh8 {[%clk 0:01:35]} 21. Rae1 {[%clk 0:01:02]}  Rxh3 {[%clk 0:01:24]} 22. Qe8+ {[%clk 0:00:56]}  Qd8 {[%clk 0:01:24]} 23. Qxd8+ {[%clk 0:00:52]}  Kxd8 {[%clk 0:01:25]} 24. Rh1 {[%clk 0:00:51]}  Nb6 {[%clk 0:01:11]} 25. Bb3 {[%clk 0:00:47]}  Bd3 {[%clk 0:01:09]} 26. Reg1 {[%clk 0:00:33]}  Kd7 {[%clk 0:01:00]} 27. a4 {[%clk 0:00:27]}  Bc4 {[%clk 0:00:59]} 28. Bxc4 {[%clk 0:00:27]}  Nxc4 {[%clk 0:01:00]} 29. Nf1 {[%clk 0:00:27]}  Rxh1 {[%clk 0:00:49]} 30. Rxh1 {[%clk 0:00:27]}  Rxh1 {[%clk 0:00:50]} 31. Kxh1 {[%clk 0:00:27]}  Nb6 {[%clk 0:00:51]} 32. a5 {[%clk 0:00:24]}  Nxd5 {[%clk 0:00:50]} 33. Ng3 {[%clk 0:00:16]}  Nxc3 {[%clk 0:00:47]} 34. Nh5 {[%clk 0:00:15]}  g6 {[%clk 0:00:43]} 35. Nf6+ {[%clk 0:00:15]}  Ke7 {[%clk 0:00:42]} 36. Ng8+ {[%clk 0:00:12]}  Ke6 {[%clk 0:00:42]} 37. Nh6 {[%clk 0:00:10]}  Ne2 {[%clk 0:00:39]} 38. d5+ {[%clk 0:00:10]}  Kf6 {[%clk 0:00:36]} 39. Ng8+ {[%clk 0:00:08]}  Ke5 {[%clk 0:00:36]} 40. Ne7 {[%clk 0:00:08]}  Nf4 {[%clk 0:00:33]} 41. Nc8 {[%clk 0:00:06]}  a6 {[%clk 0:00:30]} 42. Ne7 {[%clk 0:00:00]}  Nxd5 {[%clk 0:00:30]} 0-1


[Site "https://www.chess.com"]

[Event "Titled Tuesday Blitz November 14 Early 2023"]
[White "Manon-og, Ramon Jr."]
[Black "DonCiao"]
[WhiteFideId "5200776"]
[WhiteElo "2321"]
[BlackElo "2117"]
[Result "1-0"]
[Round "8"]
[TimeControl "180+1"]
[Date "2023.11.14"]
[WhiteClock "0:02:10"]
[BlackClock "0:00:00"]
[Board "167"]

1. e4 {[%clk 0:03:00]}  c5 {[%clk 0:02:59]} 2. Nf3 {[%clk 0:03:01]}  Nc6 {[%clk 0:02:59]} 3. Bb5 {[%clk 0:03:01]}  g6 {[%clk 0:02:59]} 4. O-O {[%clk 0:02:59]}  Bg7 {[%clk 0:02:59]} 5. Qe2 {[%clk 0:02:58]}  Nf6 {[%clk 0:02:48]} 6. c3 {[%clk 0:02:58]}  O-O {[%clk 0:02:37]} 7. Rd1 {[%clk 0:02:57]}  e5 {[%clk 0:02:26]} 8. d4 {[%clk 0:02:53]}  exd4 {[%clk 0:02:25]} 9. cxd4 {[%clk 0:02:54]}  cxd4 {[%clk 0:02:25]} 10. Nxd4 {[%clk 0:02:44]}  Nxd4 {[%clk 0:02:21]} 11. Rxd4 {[%clk 0:02:45]}  d5 {[%clk 0:01:43]} 12. Nc3 {[%clk 0:02:38]}  Bg4 {[%clk 0:01:35]} 13. f3 {[%clk 0:02:37]}  Be6 {[%clk 0:01:26]} 14. Be3 {[%clk 0:02:29]}  a6 {[%clk 0:00:47]} 15. Ba4 {[%clk 0:02:26]}  Nh5 {[%clk 0:00:35]} 16. Rd2 {[%clk 0:02:17]}  d4 {[%clk 0:00:23]} 17. Rad1 {[%clk 0:02:16]}  dxe3 {[%clk 0:00:07]} 18. Rxd8 {[%clk 0:02:16]}  Raxd8 {[%clk 0:00:07]} 19. Qxe3 {[%clk 0:02:13]}  Bxc3 {[%clk 0:00:00]} 20. Qxc3 {[%clk 0:02:10]} 1-0


[Site "https://www.chess.com"]